Workbook

Sheet UserInput
B1: Version 2.04 | C1: LOSS SNAPSHOT: | D1: Loss at 5GHz: | E1: =CONCATENATE(" ",ROUND(U60,2)," dB") -> 0.69 dB | I1: Loss at 12.75GHz: | J1: =CONCATENATE(" ",ROUND(U91,2)," dB") -> 1.56 dB | N1: Loss at 14GHz: | O1: =CONCATENATE(" ",ROUND(U96,2)," dB") -> 1.69 dB
B2: Backplane/Trace Material | H2: Linecard A Material | N2: Linecard B Material
B3: Length (inch) | D3: 1 | F3: =IF(AND(J3=0,P3=0),"no connector included",CONCATENATE("2 connectors - loss at each - ",ROUND(T60,3),"dB loss at 5G - ",ROUND(T91,3),"dB loss at 12.75G - ",ROUND(T96,3),"dB loss at 14G")) -> no connector included | H3: Length (inch) | J3: 0 | N3: Length (inch) | P3: 0
B4: Trace Width (mil) | D4: 4 | H4: Trace Width (mil) | N4: Trace Width (mil)
B5: Cu Thickness (mil) | D5: 0.6 | H5: Cu Thickness (mil) | N5: Cu Thickness (mil)
B6: Diel. Thickness (mil) | D6: 8 | H6: Diel. Thickness (mil) | N6: Diel. Thickness (mil)
B7: Freq | C7: Dk | D7: Df | H7: Freq | I7: Dk | J7: Df | N7: Freq | O7: Dk | P7: Df
B8: 100000000 | C8: 3.6 | D8: 0.0092 | H8: 100000000 | N8: 100000000
B9: 1000000000 | C9: 3.6 | D9: 0.0092 | H9: 1000000000 | N9: 1000000000
B10: 2000000000 | C10: 3.5 | D10: 0.0115 | H10: 2000000000 | N10: 2000000000
B11: 5000000000 | C11: 3.5 | D11: 0.0115 | H11: 5000000000 | N11: 5000000000
B12: 10000000000 | C12: 3.4 | D12: 0.0125 | H12: 10000000000 | N12: 10000000000
B13: 20000000000 | C13: 3.2 | D13: 0.014 | H13: 20000000000 | N13: 20000000000
B14: Medium Roughness | C14: 31 | D14: 6.000000212e-07
B29: DK fit to Second Order Equation | C29: c2 | D29: =INDEX(LINEST(C8:C13,B8:B13^{1,2}),1) -> 3.647739517e-23 | H29: DK fit to Second Order Equation | I29: c2 | J29: =IF($J$3=0,"n/a", INDEX(LINEST(I8:I13,H8:H13^{1,2}),1)) -> n/a | N29: DK fit to Second Order Equation | O29: c2 | P29: =IF($P$3=0,"n/a", INDEX(LINEST(O8:O13,N8:N13^{1,2}),1) ) -> n/a
C30: c1 | D30: =INDEX(LINEST(C8:C13,B8:B13^{1,2}),1,2) -> -2.023923483e-11 | I30: c1 | J30: =IF($J$3=0,"n/a", INDEX(LINEST(I8:I13,H8:H13^{1,2}),1,2)) -> n/a | O30: c1 | P30: =IF($P$3=0,"n/a", INDEX(LINEST(O8:O13,N8:N13^{1,2}),1,2) ) -> n/a
C31: b | D31: =INDEX(LINEST(C8:C13,B8:B13^{1,2}),1,3) -> 3.591963577 | I31: b | J31: =IF($J$3=0,"n/a", INDEX(LINEST(I8:I13,H8:H13^{1,2}),1,3)) -> n/a | O31: b | P31: =IF($P$3=0,"n/a", INDEX(LINEST(O8:O13,N8:N13^{1,2}),1,3) ) -> n/a
B32: Df fit to Second Order Equation | C32: c2 | D32: =INDEX(LINEST(D8:D13,B8:B13^{1,2}),1) -> -1.152090891e-23 | H32: Df fit to Second Order Equation | I32: c2 | J32: =IF($J$3=0,"n/a", INDEX(LINEST(J8:J13,H8:H13^{1,2}),1)) -> n/a | N32: Df fit to Second Order Equation | O32: c2 | P32: =IF($P$3=0,"n/a", INDEX(LINEST(P8:P13,N8:N13^{1,2}),1) ) -> n/a
C33: c1 | D33: =INDEX(LINEST(D8:D13,B8:B13^{1,2}),1,2) -> 4.544394446e-13 | I33: c1 | J33: =IF($J$3=0,"n/a", INDEX(LINEST(J8:J13,H8:H13^{1,2}),1,2) ) -> n/a | O33: c1 | P33: =IF($P$3=0,"n/a", INDEX(LINEST(P8:P13,N8:N13^{1,2}),1,2) ) -> n/a
C34: b | D34: =INDEX(LINEST(D8:D13,B8:B13^{1,2}),1,3) -> 0.009448675682 | I34: b | J34: =IF($J$3=0,"n/a", INDEX(LINEST(J8:J13,H8:H13^{1,2}),1,3) ) -> n/a | O34: b | P34: =IF($P$3=0,"n/a", INDEX(LINEST(P8:P13,N8:N13^{1,2}),1,3) ) -> n/a
A35: δ (m) | B35: Zo | C35: Dk | D35: Df | E35: αcond | F35: αdiel | G35: Ksnowballs | H35: Zo | I35: Dk | J35: Df | K35: αcond | L35: αdiel | M35: Ksnowballs | N35: Zo | O35: Dk | P35: Df | Q35: αcond | R35: αdiel | S35: Ksnowballs | T35: Conn. Loss | U35: Atotal (dB) | V35: Frequency (GHz)
A36: =SQRT(1/(PI()*59600000*0.00000125663))*SQRT(1/($V36*1000000000)) -> 2.061570647e-05 | B36: =94.15/( SQRT($C36)*( (($D$4/$D$6)/(1-$D$5/$D$6)) + ((((2/(1-$D$5/$D$6))*LN((1/(1-$D$5/$D$6))+1))-(((1/(1-$D$5/$D$6))-1)*LN((1/((1-$D$5/$D$6)^2))-1)))/PI() ) ) ) -> 45.54022222 | C36: =$D$29*(V36*10^9)^2 + $D$30*(V36*10^9) + $D$31 -> 3.591761188 | D36: =$D$32*(V36*10^9)^2 + $D$33*(V36*10^9) + $D$34 -> 0.009453218925 | E36: =IF( 1/(SQRT(PI()*(4*PI()*10^-7*0.999994)*59600000*$V36*10^9)) >= $D$5*0.0000254, (20*LOG(EXP(1))/2) * ((1/59600000)*39.3700787/($D$5*0.001)*(1/(0.001*$D$4)+1/(6*0.001*($D$6-$D$5)/2))) * (1/$B36), (20*LOG(EXP(1))/2) * ((SQRT(PI()*(4*PI()*10^-7*0.999994)/59600000)*SQRT($V36*10^9)*(1/(0.001*$D$4)+1/(6*0.001*($D$6-$D$5)/2))))/2 * (1/$B36) ) -> 0.03097749276 | F36: =( (20*LOG(EXP(1))/2) * 2*PI()*$V36*10^9 * $D36 *SQRT($C36) ) / (299792458*39.3700787 ) -> 0.0004142005165 | G36: =1 + ((3/2)*($C$14)*4*PI()*($D$14)^2)/(0.0000094*0.00000814)/(1+$A36/$D$14+$A36^2/2/($D$14)^2) -> 1.004394236 | H36: =IF($J$3=0,"n/a", 94.15/( SQRT($I36)*( (($J$4/$J$6)/(1-$J$5/$J$6)) + ((((2/(1-$J$5/$J$6))*LN((1/(1-$J$5/$J$6))+1))-(((1/(1-$J$5/$J$6))-1)*LN((1/((1-$J$5/$J$6)^2))-1)))/PI() ) ) )) -> n/a | I36: =IF($J$3=0,"n/a", $J$29*(V36*10^9)^2 + $J$30*(V36*10^9) + $J$31) -> n/a | J36: =IF($J$3=0,"n/a", $J$32*(V36*10^9)^2 + $J$33*(V36*10^9) + $J$34) -> n/a | K36: =IF($J$3=0,"n/a", IF( 1/(SQRT(PI()*(4*PI()*10^-7*0.999994)*59600000*$V36*10^9)) >= $J$5*0.0000254, (20*LOG(EXP(1))/2) * ((1/59600000)*39.3700787/($J$5*0.001)*(1/(0.001*$J$4)+1/(6*0.001*($J$6-$J$5)/2))) * (1/$H36), (20*LOG(EXP(1))/2) * ((SQRT(PI()*(4*PI()*10^-7*0.999994)/59600000)*SQRT($V36*10^9)*(1/(0.001*$J$4)+1/(6*0.001*($J$6-$J$5)/2))))/2 * (1/$H36) )) -> n/a | L36: =IF($J$3=0,"n/a", ( (20*LOG(EXP(1))/2) * 2*PI()*$V36*10^9 * $J36 *SQRT($I36) ) / (299792458*39.3700787 )) -> n/a | M36: =IF($J$3=0,"n/a", 1 + ((3/2)*($I$14)*4*PI()*($J$14)^2)/(0.0000094*0.00000814)/(1+$A36/$J$14+$A36^2/2/($J$14)^2) ) -> n/a | N36: =IF($P$3=0,"n/a", 94.15/( SQRT($O36)*( (($P$4/$P$6)/(1-$P$5/$P$6)) + ((((2/(1-$P$5/$P$6))*LN((1/(1-$P$5/$P$6))+1))-(((1/(1-$P$5/$P$6))-1)*LN((1/((1-$P$5/$P$6)^2))-1)))/PI() ) ) ) ) -> n/a | O36: =IF($P$3=0,"n/a", $P$29*(V36*10^9)^2 + $P$30*(V36*10^9) + $P$31 ) -> n/a | P36: =IF($P$3=0,"n/a", $P$32*(V36*10^9)^2 + $P$33*(V36*10^9) + $P$34 ) -> n/a | Q36: =IF($P$3=0,"n/a", IF( 1/(SQRT(PI()*(4*PI()*10^-7*0.999994)*59600000*$V36*10^9)) >= $P$5*0.0000254, (20*LOG(EXP(1))/2) * ((1/59600000)*39.3700787/($P$5*0.001)*(1/(0.001*$P$4)+1/(6*0.001*($P$6-$P$5)/2))) * (1/$N36), (20*LOG(EXP(1))/2) * ((SQRT(PI()*(4*PI()*10^-7*0.999994)/59600000)*SQRT($V36*10^9)*(1/(0.001*$P$4)+1/(6*0.001*($P$6-$P$5)/2))))/2 * (1/$N36) )) -> n/a | R36: =IF($P$3=0,"n/a", ( (20*LOG(EXP(1))/2) * 2*PI()*$V36*10^9 * $P36 *SQRT($O36) ) / (299792458*39.3700787 ) ) -> n/a | S36: =IF($P$3=0,"n/a", 1 + ((3/2)*($O$14)*4*PI()*($P$14)^2)/(0.0000094*0.00000814)/(1+$A36/$P$14+$A36^2/2/($P$14)^2) ) -> n/a | T36: =IF(AND($J$3=0, P$3=0), 0, 0.000009*SQRT($V36*1000000000)-0.000000000012*($V36*1000000000)+1.6E-21*($V36*1000000000)^2) -> 0 | U36: =F36*$D$3 + E36*G36*$D$3 + $T36 + IF(OR(K36="n/a",L36="n/a",M36="n/a"),0, (L36 + K36*M36)*$J$3) + $T36 + IF(OR(Q36="n/a",R36="n/a",S36="n/a"),0, (R36 + Q36*S36)*$P$3) -> 0.0315278157 | V36: 0.01
A37: =SQRT(1/(PI()*59600000*0.00000125663))*SQRT(1/($V37*1000000000)) -> 9.219624214e-06 | B37: =94.15/( SQRT($C37)*( (($D$4/$D$6)/(1-$D$5/$D$6)) + ((((2/(1-$D$5/$D$6))*LN((1/(1-$D$5/$D$6))+1))-(((1/(1-$D$5/$D$6))-1)*LN((1/((1-$D$5/$D$6)^2))-1)))/PI() ) ) ) -> 45.54535483 | C37: 3.590951707 | D37: 0.009471368852 | E37: =IF( 1/(SQRT(PI()*(4*PI()*10^-7*0.999994)*59600000*$V37*10^9)) >= $D$5*0.0000254, (20*LOG(EXP(1))/2) * ((1/59600000)*39.3700787/($D$5*0.001)*(1/(0.001*$D$4)+1/(6*0.001*($D$6-$D$5)/2))) * (1/$B37), (20*LOG(EXP(1))/2) * ((SQRT(PI()*(4*PI()*10^-7*0.999994)/59600000)*SQRT($V37*10^9)*(1/(0.001*$D$4)+1/(6*0.001*($D$6-$D$5)/2))))/2 * (1/$B37) ) -> 0.02559994245 | F37: 0.002074745018 | G37: =1 + ((3/2)*($C$14)*4*PI()*($D$14)^2)/(0.0000094*0.00000814)/(1+$A37/$D$14+$A37^2/2/($D$14)^2) -> 1.02045208 | H37: =IF($J$3=0,"n/a", 94.15/( SQRT($I37)*( (($J$4/$J$6)/(1-$J$5/$J$6)) + ((((2/(1-$J$5/$J$6))*LN((1/(1-$J$5/$J$6))+1))-(((1/(1-$J$5/$J$6))-1)*LN((1/((1-$J$5/$J$6)^2))-1)))/PI() ) ) )) -> n/a | I37: =IF($J$3=0,"n/a", $J$29*(V37*10^9)^2 + $J$30*(V37*10^9) + $J$31) -> n/a | J37: =IF($J$3=0,"n/a", $J$32*(V37*10^9)^2 + $J$33*(V37*10^9) + $J$34) -> n/a | K37: =IF($J$3=0,"n/a", IF( 1/(SQRT(PI()*(4*PI()*10^-7*0.999994)*59600000*$V37*10^9)) >= $J$5*0.0000254, (20*LOG(EXP(1))/2) * ((1/59600000)*39.3700787/($J$5*0.001)*(1/(0.001*$J$4)+1/(6*0.001*($J$6-$J$5)/2))) * (1/$H37), (20*LOG(EXP(1))/2) * ((SQRT(PI()*(4*PI()*10^-7*0.999994)/59600000)*SQRT($V37*10^9)*(1/(0.001*$J$4)+1/(6*0.001*($J$6-$J$5)/2))))/2 * (1/$H37) )) -> n/a | L37: =IF($J$3=0,"n/a", ( (20*LOG(EXP(1))/2) * 2*PI()*$V37*10^9 * $J37 *SQRT($I37) ) / (299792458*39.3700787 )) -> n/a | M37: =IF($J$3=0,"n/a", 1 + ((3/2)*($I$14)*4*PI()*($J$14)^2)/(0.0000094*0.00000814)/(1+$A37/$J$14+$A37^2/2/($J$14)^2) ) -> n/a | N37: =IF($P$3=0,"n/a", 94.15/( SQRT($O37)*( (($P$4/$P$6)/(1-$P$5/$P$6)) + ((((2/(1-$P$5/$P$6))*LN((1/(1-$P$5/$P$6))+1))-(((1/(1-$P$5/$P$6))-1)*LN((1/((1-$P$5/$P$6)^2))-1)))/PI() ) ) ) ) -> n/a | O37: =IF($P$3=0,"n/a", $P$29*(V37*10^9)^2 + $P$30*(V37*10^9) + $P$31 ) -> n/a | P37: =IF($P$3=0,"n/a", $P$32*(V37*10^9)^2 + $P$33*(V37*10^9) + $P$34 ) -> n/a | Q37: =IF($P$3=0,"n/a", IF( 1/(SQRT(PI()*(4*PI()*10^-7*0.999994)*59600000*$V37*10^9)) >= $P$5*0.0000254, (20*LOG(EXP(1))/2) * ((1/59600000)*39.3700787/($P$5*0.001)*(1/(0.001*$P$4)+1/(6*0.001*($P$6-$P$5)/2))) * (1/$N37), (20*LOG(EXP(1))/2) * ((SQRT(PI()*(4*PI()*10^-7*0.999994)/59600000)*SQRT($V37*10^9)*(1/(0.001*$P$4)+1/(6*0.001*($P$6-$P$5)/2))))/2 * (1/$N37) )) -> n/a | R37: =IF($P$3=0,"n/a", ( (20*LOG(EXP(1))/2) * 2*PI()*$V37*10^9 * $P37 *SQRT($O37) ) / (299792458*39.3700787 ) ) -> n/a | S37: =IF($P$3=0,"n/a", 1 + ((3/2)*($O$14)*4*PI()*($P$14)^2)/(0.0000094*0.00000814)/(1+$A37/$P$14+$A37^2/2/($P$14)^2) ) -> n/a | T37: =IF(AND($J$3=0, P$3=0), 0, 0.000009*SQRT($V37*1000000000)-0.000000000012*($V37*1000000000)+1.6E-21*($V37*1000000000)^2) -> 0 | U37: =F37*$D$3 + E37*G37*$D$3 + $T37 + IF(OR(K37="n/a",L37="n/a",M37="n/a"),0, (L37 + K37*M37)*$J$3) + $T37 + IF(OR(Q37="n/a",R37="n/a",S37="n/a"),0, (R37 + Q37*S37)*$P$3) -> 0.02819825953 | V37: 0.05
A38: 6.519258801e-06 | B38: 45.55177199 | C38: 3.589940018 | D38: 0.009494004418 | E38: 0.03619868556 | F38: 0.004158820915 | G38: 1.038779502 | H38: n/a | I38: n/a | J38: n/a | K38: n/a | L38: n/a | M38: n/a | N38: n/a | O38: n/a | P38: n/a | Q38: n/a | R38: n/a | S38: =IF($P$3=0,"n/a", 1 + ((3/2)*($O$14)*4*PI()*($P$14)^2)/(0.0000094*0.00000814)/(1+$A38/$P$14+$A38^2/2/($P$14)^2) ) -> n/a | T38: =IF(AND($J$3=0, P$3=0), 0, 0.000009*SQRT($V38*1000000000)-0.000000000012*($V38*1000000000)+1.6E-21*($V38*1000000000)^2) -> 0 | U38: 0.04176127347 | V38: 0.1
A39: 5.322952521e-06 | B39: 45.55819071 | C39: 3.588928513 | D39: 0.009516582378 | E39: 0.04432790823 | F39: 0.00625218569 | G39: 1.05585154 | H39: n/a | I39: n/a | J39: n/a | K39: n/a | L39: n/a | M39: n/a | N39: n/a | O39: n/a | P39: n/a | Q39: n/a | R39: n/a | S39: n/a | T39: 0 | U39: 0.05305587587 | V39: 0.15
A40: 4.609812107e-06 | B40: 45.56461098 | C40: 3.587917189 | D40: 0.009539102735 | E40: 0.05117824722 | F40: 0.008354797362 | G40: 1.071974572 | H40: n/a | I40: n/a | J40: n/a | K40: n/a | L40: n/a | M40: n/a | N40: n/a | O40: n/a | P40: n/a | Q40: n/a | R40: n/a | S40: n/a | T40: 0 | U40: 0.06321657702 | V40: 0.2
A41: 4.123141294e-06 | B41: 45.57103281 | C41: 3.586906048 | D41: 0.009561565487 | E41: 0.05721095663 | F41: 0.01046661397 | G41: 1.087323511 | H41: n/a | I41: n/a | J41: n/a | K41: n/a | L41: n/a | M41: n/a | N41: n/a | O41: n/a | P41: n/a | Q41: n/a | R41: n/a | S41: n/a | T41: 0 | U41: 0.0726734322 | V41: 0.25
A42: 2.915501169e-06 | B42: 45.60316532 | C42: 3.581853079 | D42: 0.009673015177 | E42: 0.08085150171 | F42: 0.02116230412 | G42: 1.155632836 | H42: n/a | I42: n/a | J42: n/a | K42: n/a | L42: n/a | M42: n/a | N42: n/a | O42: n/a | P42: n/a | Q42: n/a | R42: n/a | S42: n/a | T42: 0 | U42: 0.1145969544 | V42: 0.5
A43: 2.380496736e-06 | B43: 45.63533681 | C43: 3.57680467 | D43: 0.009783024754 | E43: 0.09895265432 | F43: 0.03208183653 | G43: 1.214148829 | H43: n/a | I43: n/a | J43: n/a | K43: n/a | L43: n/a | M43: n/a | N43: n/a | O43: n/a | P43: n/a | Q43: n/a | R43: n/a | S43: n/a | T43: 0 | U43: 0.1522250859 | V43: 0.75
A44: 2.061570647e-06 | B44: =94.15/( SQRT($C44)*( (($D$4/$D$6)/(1-$D$5/$D$6)) + ((((2/(1-$D$5/$D$6))*LN((1/(1-$D$5/$D$6))+1))-(((1/(1-$D$5/$D$6))-1)*LN((1/((1-$D$5/$D$6)^2))-1)))/PI() ) ) ) -> 45.66754734 | C44: 3.57176082 | D44: 0.009891594218 | E44: 0.1141800921 | F44: 0.04321999082 | G44: 1.26591429 | H44: n/a | I44: n/a | J44: n/a | K44: n/a | L44: n/a | M44: n/a | N44: n/a | O44: n/a | P44: n/a | Q44: n/a | R44: n/a | S44: n/a | T44: 0 | U44: 0.1877622011 | V44: 1
A45: 1.843924843e-06 | B45: 45.69979695 | C45: 3.56672153 | D45: 0.009998723568 | E45: 0.1275671382 | F45: 0.05457156017 | G45: 1.312573378 | H45: n/a | I45: n/a | J45: n/a | K45: n/a | L45: n/a | M45: n/a | N45: n/a | O45: n/a | P45: n/a | Q45: n/a | R45: n/a | S45: n/a | T45: 0 | U45: 0.2220127897 | V45: 1.25
A46: 1.683265384e-06 | B46: 45.73208571 | C46: 3.561686799 | D46: 0.0101044128 | E46: 0.1396441341 | F46: 0.06613135125 | G46: 1.355167422 | H46: n/a | I46: n/a | J46: n/a | K46: n/a | L46: n/a | M46: n/a | N46: n/a | O46: n/a | P46: n/a | Q46: n/a | R46: n/a | S46: n/a | T46: 0 | U46: 0.2553725325 | V46: 1.5
A47: 1.558400926e-06 | B47: 45.76441368 | C47: 3.556656628 | D47: 0.01020866193 | E47: 0.1507263556 | F47: 0.0778941843 | G47: 1.394416288 | H47: n/a | I47: n/a | J47: n/a | K47: n/a | L47: n/a | M47: n/a | N47: n/a | O47: n/a | P47: n/a | Q47: n/a | R47: n/a | S47: n/a | T47: 0 | U47: 0.2880694696 | V47: 1.75
A48: 1.457750584e-06 | B48: 45.7967809 | C48: 3.551631017 | D48: 0.01031147094 | E48: 0.1610193698 | F48: 0.08985489303 | G48: 1.430846644 | H48: n/a | I48: n/a | J48: n/a | K48: n/a | L48: n/a | M48: n/a | N48: n/a | O48: n/a | P48: n/a | Q48: n/a | R48: n/a | S48: n/a | T48: 0 | U48: 0.3202489179 | V48: 2
A49: 1.374380431e-06 | B49: 45.82918743 | C49: 3.546609966 | D49: 0.01041283983 | E49: 0.1706660664 | F49: 0.1020083247 | G49: 1.46485958 | H49: n/a | I49: n/a | J49: n/a | K49: n/a | L49: n/a | M49: n/a | N49: n/a | O49: n/a | P49: n/a | Q49: n/a | R49: n/a | S49: n/a | T49: 0 | U49: 0.352010147 | V49: 2.25
A50: 1.30385176e-06 | B50: 45.86163333 | C50: 3.541593474 | D50: 0.01051276861 | E50: 0.1797705567 | F50: 0.11434934 | G50: 1.496769883 | H50: n/a | I50: n/a | J50: n/a | K50: n/a | L50: n/a | M50: n/a | N50: n/a | O50: n/a | P50: n/a | Q50: n/a | R50: n/a | S50: n/a | T50: 0 | U50: 0.3834244953 | V50: 2.5
A51: 1.243173875e-06 | B51: 45.89411866 | C51: 3.536581542 | D51: 0.01061125728 | E51: 0.1884114924 | F51: 0.1268728133 | G51: 1.526830483 | H51: n/a | I51: n/a | J51: n/a | K51: n/a | L51: n/a | M51: n/a | N51: n/a | O51: n/a | P51: n/a | Q51: n/a | R51: n/a | S51: n/a | T51: 0 | U51: 0.4145452233 | V51: 2.75
A52: 1.190248368e-06 | B52: 45.92664347 | C52: 3.531574169 | D52: 0.01070830584 | E52: 0.1966500213 | F52: 0.1395736323 | G52: 1.555248487 | H52: n/a | I52: n/a | J52: n/a | K52: n/a | L52: n/a | M52: n/a | N52: n/a | O52: n/a | P52: n/a | Q52: n/a | R52: n/a | S52: n/a | T52: 0 | U52: 0.4454132804 | V52: 3
A53: 1.143553642e-06 | B53: 45.95920781 | C53: 3.526571356 | D53: 0.01080391428 | E53: 0.2045348059 | F53: 0.1524466981 | G53: 1.582196152 | H53: n/a | I53: n/a | J53: n/a | K53: n/a | L53: n/a | M53: n/a | N53: n/a | O53: n/a | P53: n/a | Q53: n/a | R53: n/a | S53: n/a | T53: 0 | U53: 0.4760608811 | V53: 3.25
A54: 1.101955863e-06 | B54: 45.99181175 | C54: 3.521573103 | D54: 0.0108980826 | E54: 0.2121053295 | F54: 0.1654869256 | G54: 1.607818643 | H54: n/a | I54: n/a | J54: n/a | K54: n/a | L54: n/a | M54: n/a | N54: n/a | O54: n/a | P54: n/a | Q54: n/a | R54: n/a | S54: n/a | T54: 0 | U54: 0.5065138285 | V54: 3.5
A55: 1.064590504e-06 | B55: 46.02445534 | C55: 3.51657941 | D55: 0.01099081082 | E55: 0.2193941549 | F55: 0.1786892428 | G55: 1.632239668 | H55: n/a | I55: n/a | J55: n/a | K55: n/a | L55: n/a | M55: n/a | N55: n/a | O55: n/a | P55: n/a | Q55: n/a | R55: n/a | S55: n/a | T55: 0 | U55: 0.5367930855 | V55: 3.75
A56: 1.030785323e-06 | B56: 46.05713863 | C56: 3.511590276 | D56: 0.01108209892 | E56: 0.2264285155 | F56: 0.1920485915 | G56: 1.655565684 | H56: n/a | I56: n/a | J56: n/a | K56: n/a | L56: n/a | M56: n/a | N56: n/a | O56: n/a | P56: n/a | Q56: n/a | R56: n/a | S56: n/a | T56: 0 | U56: 0.5669158715 | V56: 4
A57: 1.000008651e-06 | B57: 46.08986168 | C57: 3.506605702 | D57: 0.0111719469 | E57: 0.2332314633 | F57: 0.2055599267 | G57: 1.677889075 | H57: n/a | I57: n/a | J57: n/a | K57: n/a | L57: n/a | M57: n/a | N57: n/a | O57: n/a | P57: n/a | Q57: n/a | R57: n/a | S57: n/a | T57: 0 | U57: 0.5968964508 | V57: 4.25
A58: 9.718337229e-07 | B58: 46.12262455 | C58: 3.501625688 | D58: 0.01126035478 | E58: 0.2398227184 | F58: 0.2192182171 | G58: 1.69929062 | H58: n/a | I58: n/a | J58: n/a | K58: n/a | L58: n/a | M58: n/a | N58: n/a | O58: n/a | P58: n/a | Q58: n/a | R58: n/a | S58: n/a | T58: 0 | U58: 0.6267467129 | V58: 4.5
A59: 9.459134857e-07 | B59: 46.1554273 | C59: 3.496650233 | D59: 0.01134732254 | E59: 0.2462193076 | F59: 0.2330184446 | G59: 1.719841423 | H59: n/a | I59: n/a | J59: n/a | K59: n/a | L59: n/a | M59: n/a | N59: n/a | O59: n/a | P59: n/a | Q59: n/a | R59: n/a | S59: n/a | T59: 0 | U59: 0.6564766089 | V59: 4.75
A60: 9.219624214e-07 | B60: 46.18826997 | C60: 3.491679338 | D60: 0.01143285018 | E60: 0.2524360543 | F60: 0.2469556048 | G60: 1.739604444 | H60: n/a | I60: n/a | J60: n/a | K60: n/a | L60: n/a | M60: n/a | N60: n/a | O60: n/a | P60: n/a | Q60: n/a | R60: n/a | S60: n/a | T60: 0 | U60: 0.6860944867 | V60: 5
A61: 8.997431943e-07 | B61: 46.22115264 | C61: 3.486713002 | D61: 0.01151693771 | E61: 0.2584859589 | F61: 0.2610247064 | G61: 1.758635738 | H61: n/a | I61: n/a | J61: n/a | K61: n/a | L61: n/a | M61: n/a | N61: n/a | O61: n/a | P61: n/a | Q61: n/a | R61: n/a | S61: n/a | T61: 0 | U61: 0.7156073515 | V61: 5.25
A62: 8.790566774e-07 | B62: 46.25407534 | C62: 3.481751227 | D62: 0.01159958513 | E62: 0.2643804991 | F62: 0.2752207719 | G62: 1.77698545 | H62: n/a | I62: n/a | J62: n/a | K62: n/a | L62: n/a | M62: n/a | N62: n/a | O62: n/a | P62: n/a | Q62: n/a | R62: n/a | S62: n/a | T62: 0 | U62: 0.7450210721 | V62: 5.5
A63: 8.597343909e-07 | B63: 46.28703815 | C63: 3.476794011 | D63: 0.01168079244 | E63: 0.2701298687 | F63: 0.289538837 | G63: 1.794698648 | H63: n/a | I63: n/a | J63: n/a | K63: n/a | L63: n/a | M63: n/a | N63: n/a | O63: n/a | P63: n/a | Q63: n/a | R63: n/a | S63: n/a | T63: 0 | U63: 0.7743405472 | V63: 5.75
A64: 8.416326922e-07 | B64: 46.32004111 | C64: 3.471841354 | D64: 0.01176055963 | E64: 0.2757431711 | F64: 0.303973951 | G64: 1.811815996 | H64: n/a | I64: n/a | J64: n/a | K64: n/a | L64: n/a | M64: n/a | N64: n/a | O64: n/a | P64: n/a | Q64: n/a | R64: n/a | S64: n/a | T64: 0 | U64: 0.8035698393 | V64: 6
A65: 8.246282587e-07 | B65: 46.35308429 | C65: 3.466893258 | D65: 0.01183888671 | E65: 0.2812285764 | F65: 0.3185211763 | G65: 1.828374326 | H65: n/a | I65: n/a | J65: n/a | K65: n/a | L65: n/a | M65: n/a | N65: n/a | O65: n/a | P65: n/a | Q65: n/a | R65: n/a | S65: n/a | T65: 0 | U65: 0.8327122851 | V65: 6.25
A66: 8.086145351e-07 | B66: 46.38616773 | C66: 3.461949721 | D66: 0.01191577367 | E66: 0.2865934504 | F66: 0.333175589 | G66: 1.844407113 | H66: n/a | I66: n/a | J66: n/a | K66: n/a | L66: n/a | M66: n/a | N66: n/a | O66: n/a | P66: n/a | Q66: n/a | R66: n/a | S66: n/a | T66: 0 | U66: 0.8617705873 | V66: 6.5
A67: 7.934989119e-07 | B67: 46.4192915 | C67: 3.457010743 | D67: 0.01199122052 | E67: 0.2918444614 | F67: 0.3479322784 | G67: 1.859944882 | H67: n/a | I67: n/a | J67: n/a | K67: n/a | L67: n/a | M67: n/a | N67: n/a | O67: n/a | P67: n/a | Q67: n/a | R67: n/a | S67: n/a | T67: 0 | U67: 0.8907468906 | V67: 6.75
A68: 7.792004631e-07 | B68: 46.45245565 | C68: 3.452076326 | D68: 0.01206522726 | E68: 0.2969876702 | F68: =( (20*LOG(EXP(1))/2) * 2*PI()*$V68*10^9 * $D68 *SQRT($C68) ) / (299792458*39.3700787 ) -> 0.3627863474 | G68: 1.875015549 | H68: n/a | I68: n/a | J68: n/a | K68: n/a | L68: n/a | M68: n/a | N68: n/a | O68: n/a | P68: n/a | Q68: n/a | R68: n/a | S68: n/a | T68: 0 | U68: 0.9196428469 | V68: 7
A69: 7.656481169e-07 | B69: 46.48566025 | C69: 3.447146468 | D69: 0.01213779388 | E69: 0.3020286047 | F69: 0.3777329122 | G69: 1.889644718 | H69: n/a | I69: n/a | J69: n/a | K69: n/a | L69: n/a | M69: n/a | N69: n/a | O69: n/a | P69: n/a | Q69: n/a | R69: n/a | S69: n/a | T69: 0 | U69: 0.9484596697 | V69: 7.25
A70: 7.527791648e-07 | B70: 46.51890534 | C70: 3.442221169 | D70: 0.01220892039 | E70: 0.3069723239 | F70: 0.3927671023 | G70: 1.90385593 | H70: n/a | I70: n/a | J70: n/a | K70: n/a | L70: n/a | M70: n/a | N70: n/a | O70: n/a | P70: n/a | Q70: n/a | R70: n/a | S70: n/a | T70: 0 | U70: 0.9771981813 | V70: 7.5
A71: 7.405380374e-07 | B71: 46.55219098 | C71: 3.437300431 | D71: 0.01227860679 | E71: 0.3118234715 | F71: 0.4078840606 | G71: 1.917670885 | H71: n/a | I71: n/a | J71: n/a | K71: n/a | L71: n/a | M71: n/a | N71: n/a | O71: n/a | P71: n/a | Q71: n/a | R71: n/a | S71: n/a | T71: 0 | U71: 1.005858853 | V71: 7.75
A72: 7.288752921e-07 | B72: 46.58551723 | C72: 3.432384252 | D72: 0.01234685307 | E72: 0.3165863228 | F72: 0.4230789434 | G72: 1.931109632 | H72: n/a | I72: n/a | J72: n/a | K72: n/a | L72: n/a | M72: n/a | N72: n/a | O72: n/a | P72: n/a | Q72: n/a | R72: n/a | S72: n/a | T72: 0 | U72: 1.034441841 | V72: 8
A73: 7.177467716e-07 | B73: 46.61888415 | C73: 3.427472632 | D73: 0.01241365924 | E73: 0.3212648244 | F73: 0.4383469204 | G73: 1.944190733 | H73: n/a | I73: n/a | J73: n/a | K73: n/a | L73: n/a | M73: n/a | N73: n/a | O73: n/a | P73: n/a | Q73: n/a | R73: n/a | S73: n/a | T73: 0 | U73: 1.062947015 | V73: 8.25
A74: 7.071128982e-07 | B74: 46.6522918 | C74: 3.422565573 | D74: 0.01247902529 | E74: 0.3258626285 | F74: 0.4536831746 | G74: 1.95693141 | H74: n/a | I74: n/a | J74: n/a | K74: n/a | L74: n/a | M74: n/a | N74: n/a | O74: n/a | P74: n/a | Q74: n/a | R74: n/a | S74: n/a | T74: 0 | U74: 1.091373987 | V74: 8.5
A75: 6.969380814e-07 | B75: 46.68574022 | C75: 3.417663073 | D75: 0.01254295123 | E75: 0.330383123 | F75: 0.4690829023 | G75: 1.969347671 | H75: n/a | I75: n/a | J75: n/a | K75: n/a | L75: n/a | M75: n/a | N75: n/a | O75: n/a | P75: n/a | Q75: n/a | R75: n/a | S75: n/a | T75: 0 | U75: 1.119722136 | V75: 8.75
A76: 6.871902156e-07 | B76: 46.71922949 | C76: 3.412765133 | D76: 0.01260543706 | E76: 0.334829458 | F76: 0.4845413133 | G76: 1.981454425 | H76: n/a | I76: n/a | J76: n/a | K76: n/a | L76: n/a | M76: n/a | N76: n/a | O76: n/a | P76: n/a | Q76: n/a | R76: n/a | S76: n/a | T76: 0 | U76: 1.147990625 | V76: 9
A77: 6.778402532e-07 | B77: 46.75275965 | C77: 3.407871752 | D77: 0.01266648278 | E77: 0.3392045681 | F77: 0.5000536306 | G77: 1.993265578 | H77: n/a | I77: n/a | J77: n/a | K77: n/a | L77: n/a | M77: n/a | N77: n/a | O77: n/a | P77: n/a | Q77: n/a | R77: n/a | S77: n/a | T77: 0 | U77: 1.17617842 | V77: 9.25
A78: 6.688618402e-07 | B78: 46.78633076 | C78: 3.402982931 | D78: 0.01272608838 | E78: 0.343511193 | F78: 0.5156150905 | G78: 2.004794126 | H78: n/a | I78: n/a | J78: n/a | K78: n/a | L78: n/a | M78: n/a | N78: n/a | O78: n/a | P78: n/a | Q78: n/a | R78: n/a | S78: n/a | T78: 0 | U78: 1.204284312 | V78: 9.5
A79: 6.602310032e-07 | B79: 46.81994288 | C79: 3.39809867 | D79: 0.01278425386 | E79: 0.3477518949 | F79: 0.5312209427 | G79: 2.016052228 | H79: n/a | I79: n/a | J79: n/a | K79: n/a | L79: n/a | M79: n/a | N79: n/a | O79: n/a | P79: n/a | Q79: n/a | R79: n/a | S79: n/a | T79: 0 | U79: 1.232306925 | V79: 9.75
A80: 6.519258801e-07 | B80: 46.85359607 | C80: 3.393218968 | D80: 0.01284097924 | E80: 0.3519290747 | F80: 0.5468664502 | G80: 2.027051283 | H80: n/a | I80: n/a | J80: n/a | K80: n/a | L80: n/a | M80: n/a | N80: n/a | O80: n/a | P80: n/a | Q80: n/a | R80: n/a | S80: n/a | T80: 0 | U80: 1.260244733 | V80: 10
A81: 6.439264866e-07 | B81: 46.88729038 | C81: 3.388343826 | D81: 0.0128962645 | E81: 0.3560449858 | F81: 0.5625468893 | G81: 2.037801989 | H81: n/a | I81: n/a | J81: n/a | K81: n/a | L81: n/a | M81: n/a | N81: n/a | O81: n/a | P81: n/a | Q81: n/a | R81: n/a | S81: n/a | T81: 0 | U81: 1.28809607 | V81: 10.25
A82: 6.36214514e-07 | B82: 46.92102587 | C82: 3.383473244 | D82: 0.01295010964 | E82: 0.3601017463 | F82: 0.5782575496 | G82: 2.048314399 | H82: n/a | I82: n/a | J82: n/a | K82: n/a | L82: n/a | M82: n/a | N82: n/a | O82: n/a | P82: n/a | Q82: n/a | R82: n/a | S82: n/a | T82: 0 | U82: 1.315859142 | V82: 10.5
A83: 6.287731526e-07 | B83: 46.9548026 | C83: 3.378607222 | D83: 0.01300251468 | E83: 0.3641013505 | F83: 0.593993734 | G83: 2.058597975 | H83: n/a | I83: n/a | J83: n/a | K83: n/a | L83: n/a | M83: n/a | N83: n/a | O83: n/a | P83: n/a | Q83: n/a | R83: n/a | S83: n/a | T83: 0 | U83: 1.343532037 | V83: 10.75
A84: 6.215869377e-07 | B84: 46.98862063 | C84: 3.373745759 | D84: 0.01305347959 | E84: 0.3680456788 | F84: 0.6097507587 | G84: 2.068661631 | H84: n/a | I84: n/a | J84: n/a | K84: n/a | L84: n/a | M84: n/a | N84: n/a | O84: n/a | P84: n/a | Q84: n/a | R84: n/a | S84: n/a | T84: 0 | U84: 1.371112733 | V84: 11
A85: 6.146416142e-07 | B85: 47.02248001 | C85: 3.368888856 | D85: 0.0131030044 | E85: 0.3719365065 | F85: 0.6255239531 | G85: 2.078513776 | H85: n/a | I85: n/a | J85: n/a | K85: n/a | L85: n/a | M85: n/a | N85: n/a | O85: n/a | P85: n/a | Q85: n/a | R85: n/a | S85: n/a | T85: 0 | U85: 1.398599106 | V85: 11.25
A86: 6.079240178e-07 | B86: 47.0563808 | C86: 3.364036512 | D86: 0.01315108909 | E86: 0.375775512 | F86: 0.6413086599 | G86: 2.088162352 | H86: n/a | I86: n/a | J86: n/a | K86: n/a | L86: n/a | M86: n/a | N86: n/a | O86: n/a | P86: n/a | Q86: n/a | R86: n/a | S86: n/a | T86: 0 | U86: 1.425988937 | V86: 11.5
A87: 6.014219697e-07 | B87: 47.09032306 | C87: 3.359188728 | D87: 0.01319773367 | E87: 0.3795642844 | F87: 0.6571002352 | G87: 2.097614868 | H87: n/a | I87: n/a | J87: n/a | K87: n/a | L87: n/a | M87: n/a | N87: n/a | O87: n/a | P87: n/a | Q87: n/a | R87: n/a | S87: n/a | T87: 0 | U87: 1.453279922 | V87: 11.75
A88: 5.95124184e-07 | B88: 47.12430685 | C88: 3.354345504 | D88: 0.01324293813 | E88: 0.3833043293 | F88: 0.6728940481 | G88: 2.10687843 | H88: n/a | I88: n/a | J88: n/a | K88: n/a | L88: n/a | M88: n/a | N88: n/a | O88: n/a | P88: n/a | Q88: n/a | R88: n/a | S88: n/a | T88: 0 | U88: 1.480469672 | V88: 12
A89: 5.890201848e-07 | B89: 47.15833222 | C89: 3.34950684 | D89: 0.01328670248 | E89: 0.3869970758 | F89: 0.6886854813 | G89: 2.115959768 | H89: n/a | I89: n/a | J89: n/a | K89: n/a | L89: n/a | M89: n/a | N89: n/a | O89: n/a | P89: n/a | Q89: n/a | R89: n/a | S89: n/a | T89: 0 | U89: 1.507555724 | V89: 12.25
A90: 5.831002337e-07 | B90: 47.19239923 | C90: 3.344672735 | D90: 0.01332902672 | E90: 0.3906438811 | F90: 0.7044699304 | G90: 2.124865268 | H90: n/a | I90: n/a | J90: n/a | K90: n/a | L90: n/a | M90: n/a | N90: n/a | O90: n/a | P90: n/a | Q90: n/a | R90: n/a | S90: n/a | T90: 0 | U90: 1.534535545 | V90: 12.5
A91: 5.773552637e-07 | B91: 47.22650794 | C91: 3.33984319 | D91: 0.01336991085 | E91: 0.394246036 | F91: 0.7202428043 | G91: 2.133600988 | H91: n/a | I91: n/a | J91: n/a | K91: n/a | L91: n/a | M91: n/a | N91: n/a | O91: n/a | P91: n/a | Q91: n/a | R91: n/a | S91: n/a | T91: 0 | U91: 1.561406536 | V91: 12.75
A92: 5.742113377e-07 | B92: 47.24562706 | C92: 3.337140636 | D92: 0.01339217691 | E92: 0.3962441997 | F92: 0.7290688509 | G92: 2.138420988 | H92: n/a | I92: n/a | J92: n/a | K92: n/a | L92: n/a | M92: n/a | N92: n/a | O92: n/a | P92: n/a | Q92: n/a | R92: n/a | S92: n/a | T92: 0 | U92: 1.576405764 | V92: 12.89
A93: 5.663570133e-07 | B93: 47.29485069 | C93: 3.330197778 | D93: 0.01344735875 | E93: 0.4013212508 | F93: 0.7517355291 | G93: 2.15058583 | H93: n/a | I93: n/a | J93: n/a | K93: n/a | L93: n/a | M93: n/a | N93: n/a | O93: n/a | P93: n/a | Q93: n/a | R93: n/a | S93: n/a | T93: 0 | U93: 1.614811324 | V93: 13.25
A94: 5.610884615e-07 | B94: 47.32908484 | C94: 3.325381912 | D94: 0.01348392254 | E94: 0.4047965981 | F94: 0.767446264 | G94: 2.158845635 | H94: n/a | I94: n/a | J94: n/a | K94: n/a | L94: n/a | M94: n/a | N94: n/a | O94: n/a | P94: n/a | Q94: n/a | R94: n/a | S94: n/a | T94: 0 | U94: 1.641339633 | V94: 13.5
A95: 5.559642586e-07 | B95: 47.36336093 | C95: 3.320570606 | D95: 0.0135190462 | E95: 0.4082318765 | F95: 0.7831271919 | G95: 2.166957058 | H95: n/a | I95: n/a | J95: n/a | K95: n/a | L95: n/a | M95: n/a | N95: n/a | O95: n/a | P95: n/a | Q95: n/a | R95: n/a | S95: n/a | T95: 0 | U95: 1.667748138 | V95: 13.75
A96: 5.509779314e-07 | B96: 47.397679 | C96: 3.315763859 | D96: 0.01355272976 | E96: 0.4116281046 | F96: 0.7987737879 | G96: 2.174924829 | H96: n/a | I96: n/a | J96: n/a | K96: n/a | L96: n/a | M96: n/a | N96: n/a | O96: n/a | P96: n/a | Q96: n/a | R96: n/a | S96: n/a | T96: 0 | U96: 1.694033973 | V96: 14
A97: 5.461234056e-07 | B97: 47.43203911 | C97: 3.310961672 | D97: 0.0135849732 | E97: 0.414986256 | F97: 0.8143815402 | G97: 2.182753457 | H97: n/a | I97: n/a | J97: n/a | K97: n/a | L97: n/a | M97: n/a | N97: n/a | O97: n/a | P97: n/a | Q97: n/a | R97: n/a | S97: n/a | T97: 0 | U97: 1.720194225 | V97: 14.25
A98: 5.413949755e-07 | B98: 47.46644133 | C98: 3.306164044 | D98: 0.01361577653 | E98: 0.4183072628 | F98: 0.8299459504 | G98: 2.190447248 | H98: n/a | I98: n/a | J98: n/a | K98: n/a | L98: n/a | M98: n/a | N98: n/a | O98: n/a | P98: n/a | Q98: n/a | R98: n/a | S98: n/a | T98: 0 | U98: 1.746225943 | V98: 14.5
A99: 5.367872748e-07 | B99: 47.50088571 | C99: 3.301370977 | D99: 0.01364513974 | E99: 0.4215920175 | F99: 0.8454625329 | G99: 2.198010312 | H99: n/a | I99: n/a | J99: n/a | K99: n/a | L99: n/a | M99: n/a | N99: n/a | O99: n/a | P99: n/a | Q99: n/a | R99: n/a | S99: n/a | T99: 0 | U99: 1.772126135 | V99: 14.75
A100: 5.322952521e-07 | B100: 47.53537231 | C100: =$D$29*(V100*10^9)^2 + $D$30*(V100*10^9) + $D$31 -> 3.296582469 | D100: =$D$32*(V100*10^9)^2 + $D$33*(V100*10^9) + $D$34 -> 0.01367306285 | E100: 0.4248413758 | F100: =( (20*LOG(EXP(1))/2) * 2*PI()*$V100*10^9 * $D100 *SQRT($C100) ) / (299792458*39.3700787 ) -> 0.8609268156 | G100: 2.205446582 | H100: n/a | I100: n/a | J100: n/a | K100: n/a | L100: n/a | M100: n/a | N100: n/a | O100: n/a | P100: n/a | Q100: n/a | R100: n/a | S100: n/a | T100: 0 | U100: 1.797891776 | V100: 15
A101: =SQRT(1/(PI()*59600000*0.00000125663))*SQRT(1/($V101*1000000000)) -> 5.279141468e-07 | B101: =94.15/( SQRT($C101)*( (($D$4/$D$6)/(1-$D$5/$D$6)) + ((((2/(1-$D$5/$D$6))*LN((1/(1-$D$5/$D$6))+1))-(((1/(1-$D$5/$D$6))-1)*LN((1/((1-$D$5/$D$6)^2))-1)))/PI() ) ) ) -> 47.56990119 | C101: 3.29179852 | D101: 0.01369954583 | E101: =IF( 1/(SQRT(PI()*(4*PI()*10^-7*0.999994)*59600000*$V101*10^9)) >= $D$5*0.0000254, (20*LOG(EXP(1))/2) * ((1/59600000)*39.3700787/($D$5*0.001)*(1/(0.001*$D$4)+1/(6*0.001*($D$6-$D$5)/2))) * (1/$B101), (20*LOG(EXP(1))/2) * ((SQRT(PI()*(4*PI()*10^-7*0.999994)/59600000)*SQRT($V101*10^9)*(1/(0.001*$D$4)+1/(6*0.001*($D$6-$D$5)/2))))/2 * (1/$B101) ) -> 0.4280561582 | F101: 0.8763343394 | G101: =1 + ((3/2)*($C$14)*4*PI()*($D$14)^2)/(0.0000094*0.00000814)/(1+$A101/$D$14+$A101^2/2/($D$14)^2) -> 2.212759818 | H101: =IF($J$3=0,"n/a", 94.15/( SQRT($I101)*( (($J$4/$J$6)/(1-$J$5/$J$6)) + ((((2/(1-$J$5/$J$6))*LN((1/(1-$J$5/$J$6))+1))-(((1/(1-$J$5/$J$6))-1)*LN((1/((1-$J$5/$J$6)^2))-1)))/PI() ) ) )) -> n/a | I101: =IF($J$3=0,"n/a", $J$29*(V101*10^9)^2 + $J$30*(V101*10^9) + $J$31) -> n/a | J101: =IF($J$3=0,"n/a", $J$32*(V101*10^9)^2 + $J$33*(V101*10^9) + $J$34) -> n/a | K101: =IF($J$3=0,"n/a", IF( 1/(SQRT(PI()*(4*PI()*10^-7*0.999994)*59600000*$V101*10^9)) >= $J$5*0.0000254, (20*LOG(EXP(1))/2) * ((1/59600000)*39.3700787/($J$5*0.001)*(1/(0.001*$J$4)+1/(6*0.001*($J$6-$J$5)/2))) * (1/$H101), (20*LOG(EXP(1))/2) * ((SQRT(PI()*(4*PI()*10^-7*0.999994)/59600000)*SQRT($V101*10^9)*(1/(0.001*$J$4)+1/(6*0.001*($J$6-$J$5)/2))))/2 * (1/$H101) )) -> n/a | L101: =IF($J$3=0,"n/a", ( (20*LOG(EXP(1))/2) * 2*PI()*$V101*10^9 * $J101 *SQRT($I101) ) / (299792458*39.3700787 )) -> n/a | M101: =IF($J$3=0,"n/a", 1 + ((3/2)*($I$14)*4*PI()*($J$14)^2)/(0.0000094*0.00000814)/(1+$A101/$J$14+$A101^2/2/($J$14)^2) ) -> n/a | N101: =IF($P$3=0,"n/a", 94.15/( SQRT($O101)*( (($P$4/$P$6)/(1-$P$5/$P$6)) + ((((2/(1-$P$5/$P$6))*LN((1/(1-$P$5/$P$6))+1))-(((1/(1-$P$5/$P$6))-1)*LN((1/((1-$P$5/$P$6)^2))-1)))/PI() ) ) ) ) -> n/a | O101: =IF($P$3=0,"n/a", $P$29*(V101*10^9)^2 + $P$30*(V101*10^9) + $P$31 ) -> n/a | P101: =IF($P$3=0,"n/a", $P$32*(V101*10^9)^2 + $P$33*(V101*10^9) + $P$34 ) -> n/a | Q101: =IF($P$3=0,"n/a", IF( 1/(SQRT(PI()*(4*PI()*10^-7*0.999994)*59600000*$V101*10^9)) >= $P$5*0.0000254, (20*LOG(EXP(1))/2) * ((1/59600000)*39.3700787/($P$5*0.001)*(1/(0.001*$P$4)+1/(6*0.001*($P$6-$P$5)/2))) * (1/$N101), (20*LOG(EXP(1))/2) * ((SQRT(PI()*(4*PI()*10^-7*0.999994)/59600000)*SQRT($V101*10^9)*(1/(0.001*$P$4)+1/(6*0.001*($P$6-$P$5)/2))))/2 * (1/$N101) )) -> n/a | R101: =IF($P$3=0,"n/a", ( (20*LOG(EXP(1))/2) * 2*PI()*$V101*10^9 * $P101 *SQRT($O101) ) / (299792458*39.3700787 ) ) -> n/a | S101: =IF($P$3=0,"n/a", 1 + ((3/2)*($O$14)*4*PI()*($P$14)^2)/(0.0000094*0.00000814)/(1+$A101/$P$14+$A101^2/2/($P$14)^2) ) -> n/a | T101: 0 | U101: =F101*$D$3 + E101*G101*$D$3 + $T101 + IF(OR(K101="n/a",L101="n/a",M101="n/a"),0, (L101 + K101*M101)*$J$3) + $T101 + IF(OR(Q101="n/a",R101="n/a",S101="n/a"),0, (R101 + Q101*S101)*$P$3) -> 1.823519806 | V101: 15.25
A102: 5.236394679e-07 | B102: 47.6044724 | C102: 3.287019131 | D102: 0.01372458871 | E102: 0.4312371525 | F102: 0.8916806585 | G102: 2.219953616 | H102: n/a | I102: n/a | J102: n/a | K102: n/a | L102: n/a | M102: n/a | N102: n/a | O102: n/a | P102: n/a | Q102: n/a | R102: n/a | S102: n/a | T102: =IF(AND($J$3=0, P$3=0), 0, 0.000009*SQRT($V102*1000000000)-0.000000000012*($V102*1000000000)+1.6E-21*($V102*1000000000)^2) -> 0 | U102: 1.849007135 | V102: 15.5
A103: 5.194669754e-07 | B103: 47.639086 | C103: 3.282244302 | D103: 0.01374819147 | E103: 0.4343851153 | F103: 0.90696134 | G103: 2.227031426 | H103: n/a | I103: n/a | J103: n/a | K103: n/a | L103: n/a | M103: n/a | N103: n/a | O103: n/a | P103: n/a | Q103: n/a | R103: n/a | S103: n/a | T103: 0 | U103: 1.874350643 | V103: 15.75
A104: 5.153926617e-07 | B104: 47.67374206 | C104: 3.277474033 | D104: 0.01377035411 | E104: 0.4375007741 | F104: 0.9221719644 | G104: 2.233996548 | H104: n/a | I104: n/a | J104: n/a | K104: n/a | L104: n/a | M104: n/a | N104: n/a | O104: n/a | P104: n/a | Q104: n/a | R104: n/a | S104: n/a | T104: 0 | U104: 1.899547183 | V104: 16
A105: 5.11412736e-07 | B105: 47.70844062 | C105: 3.272708323 | D105: 0.01379107665 | E105: 0.4405848281 | F105: 0.9373081252 | G105: 2.24085215 | H105: n/a | I105: n/a | J105: n/a | K105: n/a | L105: n/a | M105: n/a | N105: n/a | O105: n/a | P105: n/a | Q105: n/a | R105: n/a | S105: n/a | T105: 0 | U105: 1.924593584 | V105: 16.25
A106: 5.075236094e-07 | B106: 47.74318175 | C106: 3.267947173 | D106: 0.01381035907 | E106: 0.4436379507 | F106: 0.952365429 | G106: 2.24760127 | H106: n/a | I106: n/a | J106: n/a | K106: n/a | L106: n/a | M106: n/a | N106: n/a | O106: n/a | P106: n/a | Q106: n/a | R106: n/a | S106: n/a | T106: 0 | U106: 1.94948665 | V106: 16.5
A107: 5.037218809e-07 | B107: 47.77796551 | C107: 3.263190583 | D107: 0.01382820137 | E107: 0.4466607901 | F107: 0.9673394956 | G107: 2.254246825 | H107: n/a | I107: n/a | J107: n/a | K107: n/a | L107: n/a | M107: n/a | N107: n/a | O107: n/a | P107: n/a | Q107: n/a | R107: n/a | S107: n/a | T107: 0 | U107: 1.974223164 | V107: 16.75
A108: 5.000043254e-07 | B108: 47.81279195 | C108: 3.258438552 | D108: 0.01384460356 | E108: 0.449653971 | F108: 0.9822259579 | G108: 2.260791617 | H108: n/a | I108: n/a | J108: n/a | K108: n/a | L108: n/a | M108: n/a | N108: n/a | O108: n/a | P108: n/a | Q108: n/a | R108: n/a | S108: n/a | T108: 0 | U108: 1.998799886 | V108: 17
A109: 4.96367882e-07 | B109: 47.84766114 | C109: 3.253691081 | D109: 0.01385956564 | E109: 0.4526180954 | F109: 0.9970204618 | G109: 2.267238336 | H109: n/a | I109: n/a | J109: n/a | K109: n/a | L109: n/a | M109: n/a | N109: n/a | O109: n/a | P109: n/a | Q109: n/a | R109: n/a | S109: n/a | T109: 0 | U109: 2.023213559 | V109: 17.25
A110: 4.928096435e-07 | B110: 47.88257312 | C110: 3.24894817 | D110: 0.01387308761 | E110: 0.4555537443 | F110: 1.011718666 | G110: 2.273589572 | H110: n/a | I110: n/a | J110: n/a | K110: n/a | L110: n/a | M110: n/a | N110: n/a | O110: n/a | P110: n/a | Q110: n/a | R110: n/a | S110: n/a | T110: 0 | U110: 2.047460909 | V110: 17.5
A111: 4.893268461e-07 | B111: 47.91752796 | C111: 3.244209818 | D111: 0.01388516946 | E111: 0.4584614784 | F111: 1.026316244 | G111: 2.279847814 | H111: n/a | I111: n/a | J111: n/a | K111: n/a | L111: n/a | M111: n/a | N111: n/a | O111: n/a | P111: n/a | Q111: n/a | R111: n/a | S111: n/a | T111: 0 | U111: 2.071538643 | V111: 17.75
A112: 4.859168614e-07 | B112: 47.95252572 | C112: 3.239476026 | D112: 0.0138958112 | E112: 0.4613418389 | F112: 1.04080888 | G112: 2.286015457 | H112: n/a | I112: n/a | J112: n/a | K112: n/a | L112: n/a | M112: n/a | N112: n/a | O112: n/a | P112: n/a | Q112: n/a | R112: n/a | S112: n/a | T112: 0 | U112: 2.095443454 | V112: 18
A113: 4.825771871e-07 | B113: 47.98756646 | C113: 3.234746794 | D113: 0.01390501282 | E113: 0.4641953489 | F113: 1.055192272 | G113: 2.292094809 | H113: n/a | I113: n/a | J113: n/a | K113: n/a | L113: n/a | M113: n/a | N113: n/a | O113: n/a | P113: n/a | Q113: n/a | R113: n/a | S113: n/a | T113: 0 | U113: 2.119172021 | V113: 18.25
A114: 4.793054396e-07 | B114: 48.02265023 | C114: 3.230022121 | D114: 0.01391277433 | E114: 0.4670225138 | F114: 1.069462132 | G114: 2.298088093 | H114: n/a | I114: n/a | J114: n/a | K114: n/a | L114: n/a | M114: n/a | N114: n/a | O114: n/a | P114: n/a | Q114: n/a | R114: n/a | S114: n/a | T114: 0 | U114: 2.14272101 | V114: 18.5
A115: 4.760993472e-07 | B115: 48.05777709 | C115: 3.225302008 | D115: 0.01391909573 | E115: 0.4698238227 | F115: 1.083614184 | G115: 2.303997449 | H115: n/a | I115: n/a | J115: n/a | K115: n/a | L115: n/a | M115: n/a | N115: n/a | O115: n/a | P115: n/a | Q115: n/a | R115: n/a | S115: n/a | T115: 0 | U115: 2.166087073 | V115: 18.75
A116: 4.729567429e-07 | B116: 48.0929471 | C116: 3.220586455 | D116: 0.01392397701 | E116: 0.4725997485 | F116: 1.097644166 | G116: 2.309824943 | H116: n/a | I116: n/a | J116: n/a | K116: n/a | L116: n/a | M116: n/a | N116: n/a | O116: n/a | P116: n/a | Q116: n/a | R116: n/a | S116: n/a | T116: 0 | U116: 2.189266853 | V116: 19
A117: 4.698755587e-07 | B117: 48.12816031 | C117: 3.215875461 | D117: 0.01392741818 | E117: 0.4753507489 | F117: 1.111547828 | G117: 2.315572567 | H117: n/a | I117: n/a | J117: n/a | K117: n/a | L117: n/a | M117: n/a | N117: n/a | O117: n/a | P117: n/a | Q117: n/a | R117: n/a | S117: n/a | T117: 0 | U117: 2.212256982 | V117: 19.25
A118: 4.668538195e-07 | B118: 48.1634168 | C118: 3.211169027 | D118: 0.01392941924 | E118: 0.4780772674 | F118: 1.125320934 | G118: 2.321242242 | H118: n/a | I118: n/a | J118: n/a | K118: n/a | L118: n/a | M118: n/a | N118: n/a | O118: n/a | P118: n/a | Q118: n/a | R118: n/a | S118: n/a | T118: 0 | U118: 2.235054082 | V118: 19.5
A119: 4.638896383e-07 | B119: 48.19871661 | C119: 3.206467153 | D119: 0.01392998018 | E119: 0.4807797334 | F119: 1.13895926 | G119: 2.326835823 | H119: n/a | I119: n/a | J119: n/a | K119: n/a | L119: n/a | M119: n/a | N119: n/a | O119: n/a | P119: n/a | Q119: n/a | R119: n/a | S119: n/a | T119: 0 | U119: 2.257654767 | V119: 19.75
A120: 4.609812107e-07 | B120: 48.23405981 | C120: 3.201769839 | D120: 0.01392910101 | E120: 0.4834585632 | F120: 1.152458597 | G120: 2.332355102 | H120: n/a | I120: n/a | J120: n/a | K120: n/a | L120: n/a | M120: n/a | N120: n/a | O120: n/a | P120: n/a | Q120: n/a | R120: n/a | S120: n/a | T120: 0 | U120: 2.280055643 | V120: 20
A121: 4.581268104e-07 | B121: 48.26944645 | C121: 3.197077084 | D121: 0.01392678172 | E121: 0.4861141604 | F121: 1.165814745 | G121: 2.33780181 | H121: n/a | I121: n/a | J121: n/a | K121: n/a | L121: n/a | M121: n/a | N121: n/a | O121: n/a | P121: n/a | Q121: n/a | R121: n/a | S121: n/a | T121: 0 | U121: 2.30225331 | V121: 20.25
A122: 4.553247853e-07 | B122: 48.30487659 | C122: 3.192388888 | D122: 0.01392302233 | E122: 0.4887469165 | F122: 1.179023522 | G122: 2.343177621 | H122: n/a | I122: n/a | J122: n/a | K122: n/a | L122: n/a | M122: n/a | N122: n/a | O122: n/a | P122: n/a | Q122: n/a | R122: n/a | S122: n/a | T122: 0 | U122: 2.324244359 | V122: 20.5
A123: 4.525735529e-07 | B123: 48.34035029 | C123: 3.187705253 | D123: 0.01391782281 | E123: 0.4913572113 | F123: 1.192080756 | G123: 2.348484151 | H123: n/a | I123: n/a | J123: n/a | K123: n/a | L123: n/a | M123: n/a | N123: n/a | O123: n/a | P123: n/a | Q123: n/a | R123: n/a | S123: n/a | T123: 0 | U123: 2.346025379 | V123: 20.75
A124: 4.498715971e-07 | B124: 48.3758676 | C124: 3.183026177 | D124: 0.01391118319 | E124: 0.4939454135 | F124: 1.204982288 | G124: 2.353722965 | H124: n/a | I124: n/a | J124: n/a | K124: n/a | L124: n/a | M124: n/a | N124: n/a | O124: n/a | P124: n/a | Q124: n/a | R124: n/a | S124: n/a | T124: 0 | U124: 2.367592951 | V124: 21
A125: 4.472174642e-07 | B125: 48.4114286 | C125: 3.178351661 | D125: 0.01390310345 | E125: 0.4965118812 | F125: 1.217723973 | G125: 2.358895575 | H125: n/a | I125: n/a | J125: n/a | K125: n/a | L125: n/a | M125: n/a | N125: n/a | O125: n/a | P125: n/a | Q125: n/a | R125: n/a | S125: n/a | T125: 0 | U125: 2.388943653 | V125: 21.25
A126: 4.4460976e-07 | B126: 48.44703333 | C126: 3.173681704 | D126: 0.0138935836 | E126: 0.4990569622 | F126: 1.230301678 | G126: 2.364003448 | H126: n/a | I126: n/a | J126: n/a | K126: n/a | L126: n/a | M126: n/a | N126: n/a | O126: n/a | P126: n/a | Q126: n/a | R126: n/a | S126: n/a | T126: 0 | U126: 2.410074058 | V126: 21.5
A127: 4.420471464e-07 | B127: 48.48268185 | C127: 3.169016307 | D127: 0.01388262363 | E127: 0.5015809946 | F127: 1.242711284 | G127: 2.369048002 | H127: n/a | I127: n/a | J127: n/a | K127: n/a | L127: n/a | M127: n/a | N127: n/a | O127: n/a | P127: n/a | Q127: n/a | R127: n/a | S127: n/a | T127: 0 | U127: 2.430980737 | V127: 21.75
A128: 4.395283387e-07 | B128: 48.51837423 | C128: 3.16435547 | D128: 0.01387022355 | E128: 0.5040843069 | F128: 1.254948684 | G128: 2.374030609 | H128: n/a | I128: n/a | J128: n/a | K128: n/a | L128: n/a | M128: n/a | N128: n/a | O128: n/a | P128: n/a | Q128: n/a | R128: n/a | S128: n/a | T128: 0 | U128: 2.451660258 | V128: 22
A129: 4.37052103e-07 | B129: 48.55411052 | C129: 3.159699193 | D129: 0.01385638336 | E129: 0.5065672186 | F129: 1.267009785 | G129: 2.3789526 | H129: n/a | I129: n/a | J129: n/a | K129: n/a | L129: n/a | M129: n/a | N129: n/a | O129: n/a | P129: n/a | Q129: n/a | R129: n/a | S129: n/a | T129: 0 | U129: 2.472109187 | V129: 22.25
A130: 4.346172534e-07 | B130: 48.58989078 | C130: 3.155047475 | D130: 0.01384110305 | E130: 0.5090300404 | F130: 1.278890506 | G130: 2.383815266 | H130: n/a | I130: n/a | J130: n/a | K130: n/a | L130: n/a | M130: n/a | N130: n/a | O130: n/a | P130: n/a | Q130: n/a | R130: n/a | S130: n/a | T130: 0 | U130: 2.492324087 | V130: 22.5
A131: 4.322226498e-07 | B131: 48.62571507 | C131: 3.150400317 | D131: 0.01382438263 | E131: 0.5114730749 | F131: 1.290586778 | G131: 2.388619857 | H131: n/a | I131: n/a | J131: n/a | K131: n/a | L131: n/a | M131: n/a | N131: n/a | O131: n/a | P131: n/a | Q131: n/a | R131: n/a | S131: n/a | T131: 0 | U131: 2.512301521 | V131: 22.75
A132: 4.298671955e-07 | B132: 48.66158344 | C132: 3.145757718 | D132: 0.01380622209 | E132: 0.5138966162 | F132: =( (20*LOG(EXP(1))/2) * 2*PI()*$V132*10^9 * $D132 *SQRT($C132) ) / (299792458*39.3700787 ) -> 1.302094548 | G132: 2.393367584 | H132: n/a | I132: n/a | J132: n/a | K132: n/a | L132: n/a | M132: n/a | N132: n/a | O132: n/a | P132: n/a | Q132: n/a | R132: n/a | S132: n/a | T132: 0 | U132: 2.532038051 | V132: 23
A133: 4.275498352e-07 | B133: 48.69749596 | C133: 3.141119679 | D133: 0.01378662145 | E133: 0.5163009511 | F133: 1.313409774 | G133: 2.398059623 | H133: n/a | I133: n/a | J133: n/a | K133: n/a | L133: n/a | M133: n/a | N133: n/a | O133: n/a | P133: n/a | Q133: n/a | R133: n/a | S133: n/a | T133: 0 | U133: 2.551530238 | V133: 23.25
A134: 4.252695532e-07 | B134: 48.73345269 | C134: 3.1364862 | D134: 0.01376558068 | E134: 0.5186863587 | F134: 1.324528425 | G134: 2.402697117 | H134: n/a | I134: n/a | J134: n/a | K134: n/a | L134: n/a | M134: n/a | N134: n/a | O134: n/a | P134: n/a | Q134: n/a | R134: n/a | S134: n/a | T134: 0 | U134: 2.570774643 | V134: 23.5
A135: 4.23025371e-07 | B135: 48.76945368 | C135: 3.131857281 | D135: 0.01374309981 | E135: 0.5210531108 | F135: 1.335446486 | G135: 2.407281171 | H135: n/a | I135: n/a | J135: n/a | K135: n/a | L135: n/a | M135: n/a | N135: n/a | O135: n/a | P135: n/a | Q135: n/a | R135: n/a | S135: n/a | T135: 0 | U135: 2.589767829 | V135: 23.75
A136: 4.208163461e-07 | B136: 48.805499 | C136: 3.127232921 | D136: 0.01371917882 | E136: 0.5234014726 | F136: 1.346159954 | G136: 2.411812862 | H136: n/a | I136: n/a | J136: n/a | K136: n/a | L136: n/a | M136: n/a | N136: n/a | O136: n/a | P136: n/a | Q136: n/a | R136: n/a | S136: n/a | T136: 0 | U136: 2.608506358 | V136: 24
A137: 4.186415701e-07 | B137: 48.8415887 | C137: 3.122613121 | D137: 0.01369381772 | E137: 0.5257317022 | F137: 1.356664839 | G137: 2.416293233 | H137: n/a | I137: n/a | J137: n/a | K137: n/a | L137: n/a | M137: n/a | N137: n/a | O137: n/a | P137: n/a | Q137: n/a | R137: n/a | S137: n/a | T137: 0 | U137: 2.626986793 | V137: 24.25
A138: 4.165001669e-07 | B138: 48.87772283 | C138: 3.11799788 | D138: 0.0136670165 | E138: 0.5280440516 | F138: 1.366957162 | G138: 2.420723299 | H138: n/a | I138: n/a | J138: n/a | K138: n/a | L138: n/a | M138: n/a | N138: n/a | O138: n/a | P138: n/a | Q138: n/a | R138: n/a | S138: n/a | T138: 0 | U138: 2.6452057 | V138: 24.5
A139: 4.143912918e-07 | B139: 48.91390147 | C139: 3.113387199 | D139: 0.01363877517 | E139: 0.5303387663 | F139: 1.377032959 | G139: 2.425104044 | H139: n/a | I139: n/a | J139: n/a | K139: n/a | L139: n/a | M139: n/a | N139: n/a | O139: n/a | P139: n/a | Q139: n/a | R139: n/a | S139: n/a | T139: 0 | U139: 2.663159646 | V139: 24.75
A140: 4.123141294e-07 | B140: 48.95012466 | C140: 3.108781078 | D140: 0.01360909373 | E140: 0.5326160862 | F140: 1.386888278 | G140: 2.429436428 | H140: n/a | I140: n/a | J140: n/a | K140: n/a | L140: n/a | M140: n/a | N140: n/a | O140: n/a | P140: n/a | Q140: n/a | R140: n/a | S140: n/a | T140: 0 | U140: 2.6808452 | V140: 25
A141: 4.102678928e-07 | B141: 48.98639247 | C141: 3.104179517 | D141: 0.01357797217 | E141: 0.5348762449 | F141: 1.39651918 | G141: 2.43372138 | H141: n/a | I141: n/a | J141: n/a | K141: n/a | L141: n/a | M141: n/a | N141: n/a | O141: n/a | P141: n/a | Q141: n/a | R141: n/a | S141: n/a | T141: 0 | U141: 2.698258934 | V141: 25.25
A142: 4.082518221e-07 | B142: 49.02270496 | C142: 3.099582515 | D142: 0.0135454105 | E142: 0.5371194708 | F142: 1.40592174 | G142: 2.437959807 | H142: n/a | I142: n/a | J142: n/a | K142: n/a | L142: n/a | M142: n/a | N142: n/a | O142: n/a | P142: n/a | Q142: n/a | R142: n/a | S142: n/a | T142: 0 | U142: 2.715397421 | V142: 25.5
A143: 4.062651835e-07 | B143: 49.05906218 | C143: 3.094990073 | D143: 0.01351140872 | E143: 0.5393459868 | F143: 1.415092042 | G143: 2.442152588 | H143: n/a | I143: n/a | J143: n/a | K143: n/a | L143: n/a | M143: n/a | N143: n/a | O143: n/a | P143: n/a | Q143: n/a | R143: n/a | S143: n/a | T143: 0 | U143: 2.73225724 | V143: 25.75
A144: 4.043072676e-07 | B144: 49.0954642 | C144: 3.090402191 | D144: 0.01347596682 | E144: 0.5415560104 | F144: 1.424026188 | G144: 2.44630058 | H144: n/a | I144: n/a | J144: n/a | K144: n/a | L144: n/a | M144: n/a | N144: n/a | O144: n/a | P144: n/a | Q144: n/a | R144: n/a | S144: n/a | T144: 0 | U144: 2.74883497 | V144: 26
A145: 4.023773889e-07 | B145: 49.13191106 | C145: 3.085818868 | D145: 0.01343908481 | E145: 0.5437497542 | F145: 1.432720289 | G145: 2.450404617 | H145: n/a | I145: n/a | J145: n/a | K145: n/a | L145: n/a | M145: n/a | N145: n/a | O145: n/a | P145: n/a | Q145: n/a | R145: n/a | S145: n/a | T145: 0 | U145: 2.765127197 | V145: 26.25
A146: 4.004748847e-07 | B146: 49.16840284 | C146: 3.081240105 | D146: 0.01340076268 | E146: 0.5459274259 | F146: 1.44117047 | G146: 2.45446551 | H146: n/a | I146: n/a | J146: n/a | K146: n/a | L146: n/a | M146: n/a | N146: n/a | O146: n/a | P146: n/a | Q146: n/a | R146: n/a | S146: n/a | T146: 0 | U146: 2.781130508 | V146: 26.5
A147: 3.985991138e-07 | B147: 49.20493959 | C147: 3.076665901 | D147: 0.01336100044 | E147: 0.5480892284 | F147: 1.44937287 | G147: 2.458484048 | H147: n/a | I147: n/a | J147: n/a | K147: n/a | L147: n/a | M147: n/a | N147: n/a | O147: n/a | P147: n/a | Q147: n/a | R147: n/a | S147: n/a | T147: 0 | U147: 2.796841495 | V147: 26.75
A148: 3.96749456e-07 | B148: 49.24152137 | C148: 3.072096258 | D148: 0.01331979809 | E148: 0.5502353602 | F148: 1.457323638 | G148: 2.462461002 | H148: n/a | I148: n/a | J148: n/a | K148: n/a | L148: n/a | M148: n/a | N148: n/a | O148: n/a | P148: n/a | Q148: n/a | R148: n/a | S148: n/a | T148: 0 | U148: 2.812256754 | V148: 27
A149: 3.949253109e-07 | B149: 49.27814824 | C149: 3.067531174 | D149: 0.01327715562 | E149: 0.5523660153 | F149: 1.465018937 | G149: 2.46639712 | H149: n/a | I149: n/a | J149: n/a | K149: n/a | L149: n/a | M149: n/a | N149: n/a | O149: n/a | P149: n/a | Q149: n/a | R149: n/a | S149: n/a | T149: 0 | U149: 2.827372887 | V149: 27.25
A150: 3.931260974e-07 | B150: 49.31482025 | C150: 3.062970649 | D150: 0.01323307304 | E150: 0.5544813832 | F150: 1.472454945 | G150: 2.470293131 | H150: n/a | I150: n/a | J150: n/a | K150: n/a | L150: n/a | M150: n/a | N150: n/a | O150: n/a | P150: n/a | Q150: n/a | R150: n/a | S150: n/a | T150: 0 | U150: 2.842186498 | V150: 27.5
A151: 3.913512527e-07 | B151: 49.35153747 | C151: 3.058414685 | D151: 0.01318755035 | E151: 0.5565816495 | F151: 1.47962785 | G151: 2.474149748 | H151: n/a | I151: n/a | J151: n/a | K151: n/a | L151: n/a | M151: n/a | N151: n/a | O151: n/a | P151: n/a | Q151: n/a | R151: n/a | S151: n/a | T151: 0 | U151: 2.856694198 | V151: 27.75
A152: 3.896002316e-07 | B152: 49.38829996 | C152: 3.05386328 | D152: 0.01314058754 | E152: 0.5586669956 | F152: 1.486533853 | G152: 2.477967662 | H152: n/a | I152: n/a | J152: n/a | K152: n/a | L152: n/a | M152: n/a | N152: n/a | O152: n/a | P152: n/a | Q152: n/a | R152: n/a | S152: n/a | T152: 0 | U152: 2.870892602 | V152: 28
A153: 3.878725058e-07 | B153: 49.42510777 | C153: 3.049316434 | D153: 0.01309218462 | E153: 0.5607375993 | F153: 1.493169169 | G153: 2.481747549 | H153: n/a | I153: n/a | J153: n/a | K153: n/a | L153: n/a | M153: n/a | N153: n/a | O153: n/a | P153: n/a | Q153: n/a | R153: n/a | S153: n/a | T153: 0 | U153: 2.884778332 | V153: 28.25
A154: 3.861675635e-07 | B154: 49.46196096 | C154: 3.044774149 | D154: 0.01304234159 | E154: 0.5627936342 | F154: 1.499530025 | G154: 2.485490068 | H154: n/a | I154: n/a | J154: n/a | K154: n/a | L154: n/a | M154: n/a | N154: n/a | O154: n/a | P154: n/a | Q154: n/a | R154: n/a | S154: n/a | T154: 0 | U154: 2.898348014 | V154: 28.5
A155: 3.844849081e-07 | B155: 49.49885959 | C155: 3.040236423 | D155: 0.01299105844 | E155: 0.5648352706 | F155: 1.505612661 | G155: 2.489195861 | H155: n/a | I155: n/a | J155: n/a | K155: n/a | L155: n/a | M155: n/a | N155: n/a | O155: n/a | P155: n/a | Q155: n/a | R155: n/a | S155: n/a | T155: 0 | U155: 2.911598279 | V155: 28.75
A156: 3.828240584e-07 | B156: 49.53580373 | C156: 3.035703256 | D156: 0.01293833518 | E156: 0.566862675 | F156: 1.511413328 | G156: 2.492865555 | H156: n/a | I156: n/a | J156: n/a | K156: n/a | L156: n/a | M156: n/a | N156: n/a | O156: n/a | P156: n/a | Q156: n/a | R156: n/a | S156: n/a | T156: 0 | U156: 2.924525765 | V156: 29
A157: 3.811845474e-07 | B157: 49.57279342 | C157: 3.03117465 | D157: 0.01288417181 | E157: 0.5688760105 | F157: 1.516928293 | G157: 2.49649976 | H157: n/a | I157: n/a | J157: n/a | K157: n/a | L157: n/a | M157: n/a | N157: n/a | O157: n/a | P157: n/a | Q157: n/a | R157: n/a | S157: n/a | T157: 0 | U157: 2.937127117 | V157: 29.25
A158: 3.795659221e-07 | B158: 49.60982873 | C158: 3.026650603 | D158: 0.01282856832 | E158: 0.570875437 | F158: 1.522153832 | G158: 2.500099074 | H158: n/a | I158: n/a | J158: n/a | K158: n/a | L158: n/a | M158: n/a | N158: n/a | O158: n/a | P158: n/a | Q158: n/a | R158: n/a | S158: n/a | T158: 0 | U158: 2.949398984 | V158: 29.5
A159: 3.779677427e-07 | B159: 49.64690972 | C159: 3.022131115 | D159: 0.01277152471 | E159: 0.5728611109 | F159: 1.527086237 | G159: 2.503664077 | H159: n/a | I159: n/a | J159: n/a | K159: n/a | L159: n/a | M159: n/a | N159: n/a | O159: n/a | P159: n/a | Q159: n/a | R159: n/a | S159: n/a | T159: 0 | U159: 2.961338022 | V159: 29.75
A160: 3.763895824e-07 | B160: 49.68403645 | C160: 3.017616188 | D160: 0.012713041 | E160: 0.5748331857 | F160: 1.531721811 | G160: 2.507195338 | H160: n/a | I160: n/a | J160: n/a | K160: n/a | L160: n/a | M160: n/a | N160: n/a | O160: n/a | P160: n/a | Q160: n/a | R160: n/a | S160: n/a | T160: 0 | U160: 2.972940894 | V160: 30
A165: =SQRT(1/(PI()*59600000*0.00000125663))*SQRT(1/($V165*1000000000)) -> 
A229: =SQRT(1/(PI()*59600000*0.00000125663))*SQRT(1/($V229*1000000000)) -> 

Sheet Material References
B2: Megtron 6 | C2: Dk | D2: Df
B3: 100000000 | C3: 3.67 | D3: 0.0039
B4: 1000000000 | C4: 3.65 | D4: 0.004
B5: 2000000000 | C5: 3.59 | D5: 0.0043
B6: 5000000000 | C6: 3.576 | D6: 0.0049
B7: 10000000000 | C7: 3.3494 | D7: 0.0055
B8: 20000000000 | C8: 3 | D8: 0.0065
B10: Nelco 4000-13SI | C10: Dk | D10: Df
B11: 100000000 | C11: 3.6 | D11: 0.0092
B12: 1000000000 | C12: 3.52 | D12: 0.0115
B13: 2000000000 | C13: 3.49 | D13: 0.0108
B14: 5000000000 | C14: 3.46 | D14: 0.011
B15: 10000000000 | C15: 3.44 | D15: 0.0112
B16: 20000000000 | C16: 3.43 | D16: 0.0114
B18: Improved FR4 | C18: Dk | D18: Df
B19: 100000000 | C19: 3.6 | D19: 0.0092
B20: 1000000000 | C20: 3.6 | D20: 0.0092
B21: 2000000000 | C21: 3.5 | D21: 0.0115
B22: 5000000000 | C22: 3.5 | D22: 0.0115
B23: 10000000000 | C23: 3.4 | D23: 0.0125
B24: 20000000000 | C24: 3.2 | D24: 0.014

Sheet KR Spec
A1: b1 | B1: 2e-05 | C1: b2 | D1: 1.1e-10 | E1: b3 | F1: 3.2e-20 | G1: b4 | H1: -1.2e-30
A2: F1 | B2: 1000000000 | C2: F2 | D2: 6000000000 | E2: Fa | F2: 100000000 | G2: Fb | H2: 5156250000 | I2: fmin | J2: 50000000 | K2: fmax | L2: 15000000000
A3: KR MAXIMUM INSERTION LOSS
A4: Freq | B4: Freq (GHz) | C4: Fitted Attenuation | D4: Insertion Loss
A5: 10000000 | B5: =A5*0.000000001 -> 0.01 | C5: =20 * LOG(EXP(1)) * ($B$1*SQRT(A5) + $D$1*A5 + $F$1*(A5^2) + $H$1*(A5^3)) -> 0.5589261582 | D5: =IF(A5<$J$2,,IF(A5<$D$2,C5+0.8+0.0000000002*A5,IF(A5<$L$2,C5+0.8+0.0000000002*$D$2+0.00000001*(A5-$D$2),))) -> 0
A6: 50000000 | B6: =A6*0.000000001 -> 0.05 | C6: =20 * LOG(EXP(1)) * ($B$1*SQRT(A6) + $D$1*A6 + $F$1*(A6^2) + $H$1*(A6^3)) -> 1.276836254 | D6: 2.086836254
A7: 100000000 | B7: 0.1 | C7: 1.835491775 | D7: 2.655491775
A8: 150000000 | B8: 0.15 | C8: 2.277135599 | D8: 3.107135599
A9: 200000000 | B9: 0.2 | C9: 2.658864712 | D9: 3.498864712
A10: 250000000 | B10: 0.25 | C10: 3.00279036 | D10: 3.85279036
A11: 500000000 | B11: 0.5 | C11: 4.430356099 | D11: 5.330356099
A12: 750000000 | B12: 0.75 | C12: 5.625992364 | D12: 6.575992364
A13: 1000000000 | B13: 1 | C13: 6.716412213 | D13: 7.716412213
A14: 1250000000 | B14: 1.25 | C14: 7.750098217 | D14: 8.800098217
A15: 1500000000 | B15: 1.5 | C15: 8.751439174 | D15: 9.851439174
A16: 1750000000 | B16: 1.75 | C16: 9.734526467 | D16: 10.88452647
A17: 2000000000 | B17: 2 | C17: 10.70820092 | D17: 11.90820092
A18: 2250000000 | B18: 2.25 | C18: 11.67830498 | D18: 12.92830498
A19: 2500000000 | B19: 2.5 | C19: 12.64882679 | D19: 13.94882679
A20: 2750000000 | B20: 2.75 | C20: 13.62253758 | D20: 14.97253758
A21: 3000000000 | B21: 3 | C21: 14.60137235 | D21: 16.00137235
A22: 3250000000 | B22: 3.25 | C22: 15.58666979 | D22: 17.03666979
A23: 3500000000 | B23: 3.5 | C23: 16.57933044 | D23: 18.07933044
A24: 3750000000 | B24: 3.75 | C24: 17.57992465 | D24: 19.12992465
A25: 4000000000 | B25: 4 | C25: 18.58876852 | D25: 20.18876852
A26: 4250000000 | B26: 4.25 | C26: 19.60597884 | D26: 21.25597884
A27: 4500000000 | B27: 4.5 | C27: 20.63151363 | D27: 22.33151363
A28: 4750000000 | B28: 4.75 | C28: 21.66520258 | D28: 23.41520258
A29: 5000000000 | B29: 5 | C29: 22.70677049 | D29: 24.50677049
A30: 5250000000 | B30: 5.25 | C30: 23.75585539 | D30: 25.60585539
A31: 5500000000 | B31: 5.5 | C31: 24.81202285 | D31: 26.71202285
A32: 5750000000 | B32: 5.75 | C32: 25.87477742 | D32: 27.82477742
A33: 6000000000 | B33: 6 | C33: 26.9435718 | D33: 28.9435718
A34: 6250000000 | B34: 6.25 | C34: 28.01781432 | D34: 32.51781432
A35: 6500000000 | B35: 6.5 | C35: 29.09687516 | D35: 36.09687516
A36: 6750000000 | B36: 6.75 | C36: 30.18009135 | D36: 39.68009135
A37: 7000000000 | B37: 7 | C37: 31.26677111 | D37: 43.26677111
A38: 7250000000 | B38: 7.25 | C38: 32.35619737 | D38: 46.85619737
A39: 7500000000 | B39: 7.5 | C39: 33.44763083 | D39: 50.44763083
A40: 7750000000 | B40: 7.75 | C40: 34.54031252 | D40: 54.04031252
A41: 8000000000 | B41: 8 | C41: 35.63346601 | D41: 57.63346601
A42: 8250000000 | B42: 8.25 | C42: 36.72629928 | D42: 61.22629928
A43: 8500000000 | B43: 8.5 | C43: 37.81800642 | D43: 64.81800642
A44: 8750000000 | B44: 8.75 | C44: 38.90776899 | D44: 68.40776899
A45: 9000000000 | B45: 9 | C45: 39.99475728 | D45: 71.99475728
A46: 9250000000 | B46: 9.25 | C46: 41.07813145 | D46: 75.57813145
A47: 9500000000 | B47: 9.5 | C47: 42.15704239 | D47: 79.15704239
A48: 9750000000 | B48: 9.75 | C48: 43.23063266 | D48: 82.73063266
A49: 10000000000 | B49: 10 | C49: 44.29803715 | D49: 86.29803715
A50: 10250000000 | B50: 10.25 | C50: 45.35838384 | D50: 89.85838384
A51: 10500000000 | B51: 10.5 | C51: 46.41079428 | D51: 93.41079428
A52: 10750000000 | B52: 10.75 | C52: 47.45438422 | D52: 96.95438422
A53: 11000000000 | B53: 11 | C53: 48.48826402 | D53: 100.488264
A54: 11250000000 | B54: 11.25 | C54: 49.5115391 | D54: 104.0115391
A55: 11500000000 | B55: 11.5 | C55: 50.52331031 | D55: 107.5233103
A56: 11750000000 | B56: 11.75 | C56: 51.52267429 | D56: 111.0226743
A57: 12000000000 | B57: 12 | C57: 52.50872377 | D57: 114.5087238
A58: 12250000000 | B58: 12.25 | C58: 53.48054785 | D58: 117.9805478
A59: 12500000000 | B59: 12.5 | C59: 54.43723228 | D59: 121.4372323
A60: 12750000000 | B60: 12.75 | C60: 55.37785967 | D60: 124.8778597
A61: 13000000000 | B61: 13 | C61: 56.30150972 | D61: 128.3015097
A62: 13250000000 | B62: 13.25 | C62: 57.20725941 | D62: 131.7072594
A63: 13500000000 | B63: 13.5 | C63: 58.09418317 | D63: 135.0941832
A64: 13750000000 | B64: 13.75 | C64: 58.96135305 | D64: 138.4613531
A65: 14000000000 | B65: 14 | C65: 59.80783889 | D65: 141.8078389
A66: 14250000000 | B66: 14.25 | C66: 60.63270842 | D66: 145.1327084
A67: 14500000000 | B67: 14.5 | C67: 61.43502742 | D67: 148.4350274
A68: 14750000000 | B68: 14.75 | C68: 62.21385982 | D68: 151.7138598
A69: 15000000000 | B69: 15 | C69: =20 * LOG(EXP(1)) * ($B$1*SQRT(A69) + $D$1*A69 + $F$1*(A69^2) + $H$1*(A69^3)) -> 62.96826784 | D69: =IF(A69<$J$2,,IF(A69<$D$2,C69+0.8+0.0000000002*A69,IF(A69<$L$2,C69+0.8+0.0000000002*$D$2+0.00000001*(A69-$D$2),))) -> 0
A70: 15250000000 | B70: =A70*0.000000001 -> 15.25 | C70: 63.69731203 | D70: 0
A71: 15500000000 | B71: 15.5 | C71: 64.40005142 | D71: 0
A72: 15750000000 | B72: 15.75 | C72: 65.07554359 | D72: 0
A73: 16000000000 | B73: 16 | C73: 65.72284474 | D73: 0
A74: 16250000000 | B74: 16.25 | C74: 66.34100976 | D74: 0
A75: 16500000000 | B75: 16.5 | C75: 66.92909234 | D75: 0
A76: 16750000000 | B76: 16.75 | C76: 67.48614498 | D76: 0
A77: 17000000000 | B77: 17 | C77: 68.01121909 | D77: 0
A78: 17250000000 | B78: 17.25 | C78: 68.50336503 | D78: 0
A79: 17500000000 | B79: 17.5 | C79: 68.96163217 | D79: 0
A80: 17750000000 | B80: 17.75 | C80: 69.38506892 | D80: 0
A81: 18000000000 | B81: 18 | C81: 69.77272282 | D81: 0
A82: 18250000000 | B82: 18.25 | C82: 70.12364053 | D82: 0
A83: 18500000000 | B83: 18.5 | C83: 70.4368679 | D83: 0
A84: 18750000000 | B84: 18.75 | C84: 70.71145003 | D84: 0
A85: 19000000000 | B85: 19 | C85: 70.94643125 | D85: 0
A86: 19250000000 | B86: 19.25 | C86: 71.14085521 | D86: 0
A87: 19500000000 | B87: 19.5 | C87: 71.29376485 | D87: 0
A88: 19750000000 | B88: 19.75 | C88: 71.40420252 | D88: 0
A89: 20000000000 | B89: 20 | C89: 71.4712099 | D89: 0
A90: 20250000000 | B90: 20.25 | C90: 71.49382813 | D90: 0
A91: 20500000000 | B91: 20.5 | C91: 71.47109775 | D91: 0
A92: 20750000000 | B92: 20.75 | C92: 71.40205878 | D92: 0
A93: 21000000000 | B93: 21 | C93: 71.28575073 | D93: 0
A94: 21250000000 | B94: 21.25 | C94: 71.12121261 | D94: 0
A95: 21500000000 | B95: 21.5 | C95: 70.90748294 | D95: 0
A96: 21750000000 | B96: 21.75 | C96: 70.6435998 | D96: 0
A97: 22000000000 | B97: 22 | C97: 70.32860084 | D97: 0
A98: 22250000000 | B98: 22.25 | C98: 69.96152327 | D98: 0
A99: 22500000000 | B99: 22.5 | C99: 69.54140391 | D99: 0
A100: 22750000000 | B100: 22.75 | C100: 69.06727921 | D100: 0
A101: 23000000000 | B101: 23 | C101: 68.5381852 | D101: 0
A102: 23250000000 | B102: 23.25 | C102: 67.95315761 | D102: 0
A103: 23500000000 | B103: 23.5 | C103: 67.31123177 | D103: 0
A104: 23750000000 | B104: 23.75 | C104: 66.61144272 | D104: 0
A105: 24000000000 | B105: 24 | C105: 65.85282516 | D105: 0
A106: 24250000000 | B106: 24.25 | C106: 65.03441348 | D106: 0
A107: 24500000000 | B107: 24.5 | C107: 64.15524178 | D107: 0
A108: 24750000000 | B108: 24.75 | C108: 63.21434388 | D108: 0
A109: 25000000000 | B109: 25 | C109: 62.21075331 | D109: 0
A110: 25250000000 | B110: 25.25 | C110: 61.14350334 | D110: 0
A111: 25500000000 | B111: 25.5 | C111: 60.01162698 | D111: 0
A112: 25750000000 | B112: 25.75 | C112: 58.81415699 | D112: 0
A113: 26000000000 | B113: 26 | C113: 57.5501259 | D113: 0
A114: 26250000000 | B114: 26.25 | C114: 56.21856598 | D114: 0
A115: 26500000000 | B115: 26.5 | C115: 54.81850932 | D115: 0
A116: 26750000000 | B116: 26.75 | C116: 53.34898776 | D116: 0
A117: 27000000000 | B117: 27 | C117: 51.80903293 | D117: 0
A118: 27250000000 | B118: 27.25 | C118: 50.19767627 | D118: 0
A119: 27500000000 | B119: 27.5 | C119: 48.51394902 | D119: 0
A120: 27750000000 | B120: 27.75 | C120: 46.75688222 | D120: 0
A121: 28000000000 | B121: 28 | C121: 44.92550674 | D121: 0
A122: 28250000000 | B122: 28.25 | C122: 43.01885327 | D122: 0
A123: 28500000000 | B123: 28.5 | C123: 41.03595231 | D123: 0
A124: 28750000000 | B124: 28.75 | C124: 38.97583421 | D124: 0
A125: 29000000000 | B125: 29 | C125: 36.83752914 | D125: 0
A126: 29250000000 | B126: 29.25 | C126: 34.62006714 | D126: 0
A127: 29500000000 | B127: 29.5 | C127: 32.32247806 | D127: 0
A128: 29750000000 | B128: 29.75 | C128: 29.94379163 | D128: 0
A129: 30000000000 | B129: 30 | C129: 27.48303743 | D129: 0
